bitfinex/quotes_BTCUSD_20241110
["timestamp","ask_amount","ask_price","bid_price","bid_amount"]
[1731277060969,1.91332018,80847.0,80846.0,0.83631935]
[1731277061180,0.18636839,80866.0,80856.0,0.232676]
[1731277061181,3.83360981,80857.0,80856.0,0.232676]
[1731277061380,3.83360981,80857.0,80856.0,0.68211763]
[1731277061381,3.60469643,80857.0,80856.0,0.68211763]
[1731277061646,3.53049143,80857.0,80856.0,0.68211763]
[1731277061822,3.47854943,80857.0,80856.0,0.68011763]
[1731277062234,3.47854943,80857.0,80856.0,0.58757939]
[1731277062623,3.47854943,80857.0,80856.0,0.61904763]
[1731277063034,3.47854943,80857.0,80856.0,0.61704763]
[1731277063404,3.47854943,80857.0,80856.0,0.61904763]
[1731277063616,3.47854943,80857.0,80856.0,0.65893514]
[1731277063871,3.47854943,80857.0,80856.0,0.61904763]
[1731277064079,3.47854943,80857.0,80856.0,0.65240226]
[1731277064648,3.24099074,80857.0,80856.0,0.65440226]
[1731277064864,3.24099074,80857.0,80856.0,0.69628977]
[1731277064865,3.15385041,80857.0,80856.0,0.69628977]
[1731277065134,3.15385041,80857.0,80856.0,0.81378846]
[1731277065250,3.15385041,80857.0,80856.0,0.69628977]
[1731277065251,3.09824387,80857.0,80856.0,0.69628977]
[1731277065471,3.09569271,80857.0,80856.0,0.69228977]
[1731277065697,3.04622271,80857.0,80856.0,0.69228977]
[1731277065906,2.97201771,80857.0,80856.0,0.69228977]
[1731277066137,2.9226545,80857.0,80856.0,0.69628977]
[1731277066339,2.9234955,80857.0,80856.0,0.69628977]
[1731277066640,2.8987605,80857.0,80856.0,0.69628977]
[1731277066836,2.72099524,80857.0,80856.0,0.67320324]
[1731277067051,2.71975906,80857.0,80856.0,0.71889161]
[1731277067270,2.71975906,80857.0,80856.0,0.76558243]
[1731277067459,2.71975906,80857.0,80856.0,2.74306942]
[1731277067661,2.55157784,80857.0,80856.0,3.00011978]
[1731277067862,2.54433642,80857.0,80856.0,3.02728615]
[1731277068059,2.41887828,80857.0,80856.0,3.02728615]
[1731277068308,2.41287828,80857.0,80856.0,2.98059533]
[1731277068452,2.36587828,80857.0,80856.0,2.98059533]
[1731277068658,2.06412891,80857.0,80856.0,2.98056394]
[1731277068865,2.03287507,80857.0,80856.0,2.98056394]
[1731277069628,1.86384392,80857.0,80856.0,2.99600717]
[1731277069973,1.78963892,80857.0,80856.0,3.36703717]
[1731277070194,1.75890392,80857.0,80856.0,3.36703717]
[1731277070357,1.71533392,80857.0,80856.0,3.4508626]
[1731277070555,1.67755712,80857.0,80856.0,3.43141321]
[1731277070765,1.57861712,80857.0,80856.0,3.43541321]
[1731277070984,1.5292566,80857.0,80856.0,3.43541321]
[1731277071187,1.5292566,80857.0,80856.0,3.43541248]
[1731277071642,1.36989307,80857.0,80856.0,3.43541248]
[1731277071847,1.34515807,80857.0,80856.0,3.46683914]
[1731277072223,1.30521526,80857.0,80856.0,3.46683914]
[1731277072476,0.92246778,80857.0,80856.0,3.46683914]
[1731277072667,0.47006577,80857.0,80856.0,3.46683914]
[1731277072883,0.00115915,80869.0,80856.0,3.46683914]
[1731277072884,4.40669551,80868.0,80867.0,0.009]
[1731277073051,4.29067541,80868.0,80867.0,0.74698181]
[1731277073262,4.01472322,80868.0,80867.0,1.20454014]
[1731277073465,3.24650226,80868.0,80867.0,1.20454014]
[1731277073675,2.3816213,80868.0,80867.0,1.21998062]
[1731277073884,2.3816213,80868.0,80867.0,0.95478031]
[1731277074057,2.35533267,80868.0,80867.0,1.1636035]
[1731277074255,2.047867,80868.0,80867.0,1.17328508]
[1731277074460,1.30664604,80868.0,80867.0,1.02310175]
[1731277074657,1.04443435,80868.0,80867.0,1.19065334]
[1731277074898,1.00125435,80868.0,80867.0,1.19065334]
[1731277075111,1.00125435,80868.0,80867.0,1.18565334]
[1731277075453,1.00125435,80868.0,80867.0,1.1528432]
[1731277075705,1.00125435,80868.0,80867.0,0.79653561]
[1731277075910,0.99625435,80868.0,80867.0,0.79653561]
[1731277076849,0.99625435,80868.0,80867.0,0.81198183]
[1731277077188,0.99501833,80868.0,80867.0,0.80998183]
[1731277077616,1.04211833,80868.0,80867.0,0.67927221]
[1731277077821,1.04211833,80868.0,80867.0,0.81037103]
[1731277078286,1.04295933,80868.0,80867.0,0.81037103]
[1731277078634,1.05595933,80868.0,80867.0,0.29403229]
[1731277078834,0.01,80858.0,80857.0,0.35169768]
[1731277079033,0.005,80858.0,80857.0,0.47763989]
[1731277079358,0.01,80858.0,80857.0,0.16603229]
[1731277079577,0.247324,80866.0,80857.0,0.16603229]
[1731277079775,0.123662,80866.0,80857.0,0.00247309]
[1731277079946,0.123668,80862.0,80857.0,0.00247309]
[1731277080222,0.25557134,80865.0,80857.0,0.00247309]
[1731277080223,0.00824634,80865.0,80858.0,0.1069896]
[1731277080388,0.00824634,80865.0,80859.0,0.3116076]
[1731277080544,0.00824634,80865.0,80856.0,2.1086716]
[1731277080750,0.123667,80862.0,80861.0,0.05793065]
[1731277080953,0.123675,80857.0,80856.0,2.001682]
[1731277081158,0.24734,80861.0,80856.0,2.001682]
[1731277081159,0.005,80861.0,80856.0,2.001682]
[1731277081376,0.00824634,80865.0,80864.0,0.123664]
[1731277081570,0.99585933,80868.0,80864.0,0.123664]
[1731277081571,0.18566539,80866.0,80865.0,0.123661]
[1731277081772,0.00821525,80865.0,80856.0,2.001682]
[1731277082075,0.99585933,80868.0,80856.0,2.001682]
[1731277082076,0.99585933,80868.0,80858.0,0.18566539]
[1731277082282,0.99585933,80868.0,80861.0,0.123668]
[1731277082283,0.18566539,80867.0,80861.0,0.123668]
[1731277082477,0.99585933,80868.0,80859.0,0.12594221]
[1731277082873,0.99585933,80868.0,80860.0,0.123669]
[1731277083096,0.98585933,80868.0,80867.0,0.123659]
[1731277083306,0.99409123,80868.0,80867.0,0.24960121]
[1731277083506,0.99409123,80868.0,80858.0,0.247347]
[1731277083712,0.99409123,80868.0,80859.0,0.12594221]
[1731277084033,0.99409123,80868.0,80867.0,0.123659]
[1731277084244,0.99409123,80868.0,80859.0,0.12594221]
[1731277084480,0.99409123,80868.0,80867.0,0.4352666]
[1731277084802,0.72520193,80868.0,80867.0,0.53375956]
[1731277084997,0.72520193,80868.0,80867.0,0.44750121]
[1731277085241,0.7239651,80868.0,80867.0,0.47206874]
[1731277085435,0.7239651,80868.0,80867.0,0.48406874]
[1731277085635,0.72149236,80868.0,80867.0,0.48406874]
[1731277085839,0.72149236,80868.0,80867.0,0.48206874]
[1731277086510,0.67202836,80868.0,80867.0,0.48406874]
[1731277086723,0.52363636,80868.0,80867.0,0.48406874]
[1731277086964,0.52363636,80868.0,80867.0,0.48206874]
[1731277087161,0.18906054,80883.0,80870.0,0.240655]
[1731277087282,0.18906054,80883.0,80870.0,0.36659721]
[1731277087700,0.18906054,80883.0,80870.0,0.38203995]
[1731277087879,0.24520613,80871.0,80870.0,0.24638495]
[1731277088172,0.24520613,80871.0,80870.0,0.26503995]
[1731277088404,0.21830613,80871.0,80870.0,0.26003995]
[1731277088628,4.8649504,80878.0,80877.0,0.123644]
[1731277088835,0.0029,80873.0,80872.0,0.123652]
[1731277089044,0.0029,80873.0,80872.0,0.01235777]
[1731277089919,0.0029,80873.0,80850.0,0.00547255]
[1731277089920,0.0029,80869.0,80868.0,0.05355043]
[1731277090150,0.0029,80869.0,80857.0,0.01428834]
[1731277090151,0.126565,80863.0,80862.0,0.03571328]
[1731277090350,0.0029,80862.0,80861.0,0.03571328]
[1731277090552,0.0029,80858.0,80857.0,0.0659082]
[1731277090752,0.0029,80858.0,80857.0,0.07365979]
[1731277090956,0.0029,80858.0,80857.0,0.0225574]
[1731277091165,0.0029,80857.0,80854.0,0.05358206]
[1731277091370,0.123672,80859.0,80856.0,2.03740564]
[1731277091578,0.000841,80871.0,80856.0,2.001682]
[1731277091579,0.118675,80857.0,80856.0,2.001682]
[1731277091829,0.00579374,80858.0,80856.0,0.501782]
[1731277092060,0.247328,80864.0,80856.0,0.501782]
[1731277092289,0.12945709,80857.0,80856.0,0.501782]
[1731277092452,0.123671,80860.0,80856.0,0.501782]
[1731277092687,0.123675,80857.0,80856.0,0.501782]
[1731277092857,0.01247303,80861.0,80846.0,0.001682]
[1731277093145,0.01,80859.0,80846.0,0.001682]
[1731277093309,0.005,80859.0,80846.0,0.001682]
[1731277093520,0.13094221,80858.0,80846.0,0.001682]
[1731277093710,0.12369,80847.0,80846.0,0.001682]
[1731277094201,0.005,80832.0,80826.0,0.001672]
[1731277094420,0.12594221,80831.0,80814.0,0.03575144]
[1731277094626,0.005,80818.0,80807.0,0.03575144]
[1731277094828,0.247484,80813.0,80796.0,0.22141683]
[1731277095066,0.005,80814.0,80796.0,0.18566539]
[1731277095067,0.005,80812.0,80796.0,0.18566539]
[1731277095315,0.005,80806.0,80793.0,0.005]
[1731277095534,0.005,80806.0,80787.0,0.18566539]
[1731277095535,0.123761,80801.0,80797.0,0.00247482]
[1731277095791,0.123763,80800.0,80789.0,0.123778]
[1731277096005,0.00503816,80800.0,80786.0,0.005]
[1731277096225,0.18566539,80799.0,80783.0,0.005]
[1731277096432,0.123768,80797.0,80785.0,0.123784]
[1731277096654,0.18566539,80799.0,80783.0,0.005]
[1731277096655,0.00503204,80798.0,80783.0,0.005]
[1731277096870,0.00502591,80796.0,80783.0,0.005]
[1731277097136,0.00502285,80795.0,80783.0,0.128787]
[1731277097365,0.00502285,80795.0,80781.0,0.005]
[1731277097571,0.00502285,80795.0,80771.0,0.0463]
[1731277097572,0.005,80797.0,80779.0,0.247589]
[1731277097793,0.18566539,80799.0,80778.0,0.005]
[1731277097794,0.00311476,80794.0,80778.0,0.005]
[1731277097965,0.00311179,80796.0,80779.0,0.247589]
[1731277098172,0.00311179,80796.0,80769.0,0.247618]
[1731277098173,0.18566539,80788.0,80757.0,0.005]
[1731277098353,0.18566539,80788.0,80778.0,0.123794]
[1731277098562,0.18566539,80788.0,80779.0,0.12626852]
[1731277098783,0.18566539,80788.0,80779.0,0.00247552]
[1731277099018,0.18566539,80788.0,80771.0,0.00247552]
[1731277099225,0.123769,80796.0,80779.0,0.123793]
[1731277099556,0.18566539,80787.0,80780.0,0.12841755]
[1731277099774,0.00812586,80795.0,80780.0,0.12841755]
[1731277099984,0.18566539,80799.0,80789.0,0.123779]
[1731277099985,0.18566539,80790.0,80789.0,0.123779]
[1731277100159,0.18566539,80790.0,80780.0,0.12594221]
[1731277100384,0.18566539,80790.0,80761.0,0.005]
[1731277100385,0.18566539,80790.0,80781.0,0.00247531]
[1731277100608,0.30942839,80799.0,80764.0,0.371452]
[1731277100833,0.18566539,80799.0,80781.0,0.123791]
[1731277101041,0.18566539,80789.0,80780.0,0.123792]
[1731277101212,0.247533,80798.0,80780.0,0.123792]
[1731277101213,0.18566539,80788.0,80780.0,0.123792]
[1731277101390,0.18566539,80799.0,80782.0,0.123788]
[1731277101597,0.18566539,80790.0,80783.0,0.00247525]
[1731277102001,0.18566539,80790.0,80765.0,0.37357221]
[1731277102002,0.18566539,80790.0,80774.0,0.123802]
[1731277102209,0.247537,80796.0,80775.0,0.12841765]
[1731277102388,0.18566539,80789.0,80775.0,0.12841765]
[1731277102608,0.18566539,80789.0,80764.0,0.247632]
[1731277102831,0.12594221,80788.0,80755.0,0.18566539]
[1731277103035,0.12594221,80788.0,80758.0,0.247653]
[1731277103252,0.123799,80776.0,80763.0,0.123818]
[1731277103525,0.18566539,80777.0,80746.0,0.247688]
[1731277103719,0.18566539,80777.0,80753.0,0.247668]
[1731277103720,0.247598,80776.0,80753.0,0.247668]
[1731277103930,0.18566539,80790.0,80789.0,0.123779]
[1731277104141,0.18566539,80790.0,80776.0,0.0404982]
[1731277104342,0.18566539,80790.0,80789.0,0.123779]
[1731277104552,0.000842,80800.0,80799.0,0.123763]
[1731277104999,0.000842,80800.0,80799.0,0.12623802]
[1731277105219,0.000842,80800.0,80799.0,0.00247502]
[1731277105434,0.000842,80800.0,80790.0,0.247555]
[1731277105645,0.000842,80800.0,80790.0,0.123777]
[1731277105912,0.000842,80800.0,80791.0,0.25002705]
[1731277106062,0.000842,80800.0,80794.0,0.123771]
[1731277106263,0.000842,80800.0,80795.0,0.12624396]
[1731277106471,0.000842,80800.0,80795.0,0.00247496]
[1731277106680,0.18566539,80797.0,80781.0,0.24758]
[1731277106880,0.123796,80778.0,80764.0,0.123817]
[1731277107113,0.01,80788.0,80770.0,0.18566539]
[1731277107321,0.01,80788.0,80771.0,0.00247572]
[1731277107322,0.18566539,80783.0,80771.0,0.00247572]
[1731277107523,0.123793,80780.0,80766.0,0.123813]
[1731277107720,0.18566539,80783.0,80767.0,0.00247579]
[1731277107968,0.123792,80781.0,80768.0,0.123811]
[1731277108151,0.18566539,80783.0,80769.0,0.123808]
[1731277108348,0.18566539,80783.0,80768.0,0.12381]
[1731277108349,0.123789,80782.0,80768.0,0.12381]
[1731277108558,0.247579,80782.0,80766.0,0.123813]
[1731277108760,0.123793,80780.0,80767.0,0.123812]
[1731277109025,0.247579,80782.0,80766.0,0.123813]
[1731277109394,0.18566539,80783.0,80767.0,0.247624]
[1731277109605,0.18566539,80774.0,80750.0,0.025]
[1731277109805,0.247586,80780.0,80752.0,0.247671]
[1731277109990,0.18566539,80772.0,80763.0,0.123818]
[1731277110306,0.18566539,80772.0,80753.0,0.12594221]
[1731277110487,0.18566539,80783.0,80771.0,0.123806]
[1731277110680,0.18566539,80774.0,80766.0,0.123813]
[1731277110887,0.18566539,80783.0,80753.0,0.12594221]
[1731277111025,0.123792,80781.0,80768.0,0.12381]
[1731277111226,0.18566539,80774.0,80756.0,0.247659]
[1731277111430,0.247579,80782.0,80757.0,0.12594221]
[1731277111759,0.18566539,80774.0,80757.0,0.12594221]
[1731277111946,0.18566539,80783.0,80757.0,0.12594221]
[1731277112150,0.18566539,80774.0,80758.0,0.00247574]
[1731277112360,0.18566539,80774.0,80770.0,0.123807]
[1731277112573,0.18566539,80774.0,80771.0,0.123806]
[1731277113009,0.18566539,80774.0,80768.0,0.123811]
[1731277113346,0.18566539,80783.0,80763.0,0.247638]
[1731277113553,0.12379,80782.0,80770.0,0.123807]
[1731277113762,0.18566539,80783.0,80764.0,0.12594221]
[1731277113956,0.12594221,80781.0,80757.0,0.247655]
[1731277114095,0.123806,80772.0,80758.0,0.00247595]
[1731277114304,0.18566539,80783.0,80759.0,0.37359221]
[1731277114502,0.18566539,80774.0,80761.0,0.247644]
[1731277114727,0.18566539,80774.0,80759.0,0.12594221]
[1731277115077,0.18566539,80774.0,80764.0,0.123816]
[1731277115360,0.18566539,80783.0,80761.0,0.247644]
[1731277115361,0.18566539,80773.0,80761.0,0.247644]
[1731277115625,0.18566539,80783.0,80762.0,0.12594221]
[1731277115837,0.005,80789.0,80762.0,0.12594221]
[1731277115838,0.18566539,80781.0,80780.0,0.123793]
[1731277116007,0.18566539,80781.0,80780.0,0.24973521]
[1731277116532,0.005,80806.0,80780.0,0.12594221]
[1731277116533,0.123758,80803.0,80780.0,0.12594221]
[1731277116740,0.005,80806.0,80789.0,0.123778]
[1731277116942,0.247515,80804.0,80790.0,0.00247528]
[1731277117226,0.247515,80804.0,80786.0,0.123783]
[1731277117227,0.123766,80798.0,80786.0,0.123783]
[1731277117452,0.005,80793.0,80769.0,0.247616]
[1731277117659,0.005,80793.0,80757.0,0.001684]
[1731277117660,0.123786,80785.0,80773.0,0.123803]
[1731277117987,0.123786,80785.0,80770.0,0.25534757]
[1731277117988,0.123788,80784.0,80774.0,0.00773418]
[1731277118211,0.18566539,80783.0,80772.0,0.00773425]
[1731277118392,0.12379,80782.0,80771.0,0.123806]
[1731277118550,0.12379,80782.0,80764.0,0.01665924]
[1731277118551,0.18566539,80783.0,80774.0,0.123802]
[1731277118769,0.12594221,80782.0,80775.0,0.00773425]
[1731277118978,0.13341524,80782.0,80760.0,0.01666062]
[1731277119176,0.247582,80781.0,80764.0,0.123816]
[1731277119383,0.123798,80777.0,80765.0,0.00773425]
[1731277119559,0.18566539,80774.0,80765.0,0.00773425]
[1731277119762,0.123805,80772.0,80760.0,0.123822]
[1731277119965,0.01,80770.0,80761.0,0.00773425]
[1731277120300,0.01,80770.0,80762.0,0.00773425]
[1731277120301,0.18566539,80766.0,80762.0,0.00773425]
[1731277120451,0.18566539,80766.0,80757.0,0.001684]
[1731277120452,0.00747303,80769.0,80758.0,0.00773425]
[1731277120659,0.123826,80758.0,80757.0,0.001684]
[1731277120892,0.005,80763.0,80757.0,0.001684]
[1731277121116,0.30949139,80758.0,80757.0,0.001684]
[1731277121490,0.30949139,80758.0,80753.0,0.00773425]
[1731277121491,0.005,80775.0,80764.0,0.01101932]
[1731277121665,0.0823,80780.0,80764.0,0.01101932]
[1731277121666,0.18566539,80773.0,80764.0,0.01101932]
[1731277121864,0.005,80790.0,80769.0,0.123809]
[1731277122066,0.005,80793.0,80769.0,0.1342399]
[1731277122067,0.123777,80791.0,80769.0,0.1342399]
[1731277122279,0.005,80793.0,80769.0,0.1342399]
[1731277122535,0.01,80788.0,80769.0,0.13176419]
[1731277123000,0.01,80793.0,80769.0,0.13424002]
[1731277123218,0.005,80788.0,80769.0,0.13424002]
[1731277123682,0.005,80788.0,80769.0,0.14074541]
[1731277123848,0.128781,80788.0,80769.0,0.13179022]
[1731277124048,0.00247303,80787.0,80769.0,0.13179022]
[1731277124382,0.123785,80785.0,80769.0,0.13179022]
[1731277124578,0.247554,80791.0,80769.0,0.13179022]
[1731277124579,0.01,80792.0,80769.0,0.13179022]
[1731277124796,0.123779,80789.0,80769.0,0.13179022]
[1731277125002,0.00747303,80788.0,80769.0,0.13179022]
[1731277125195,0.005,80785.0,80769.0,0.13179022]
[1731277125398,0.128785,80785.0,80769.0,0.13179022]
[1731277125571,0.005,80785.0,80769.0,0.13179022]
[1731277125984,0.005,80788.0,80769.0,0.14664118]
[1731277126759,0.005,80788.0,80769.0,0.13426614]
[1731277126977,0.00747303,80788.0,80769.0,0.13179022]
[1731277127411,0.000842,80781.0,80769.0,0.13179022]
[1731277127807,0.000842,80781.0,80769.0,0.1318063]
[1731277128247,0.000842,80781.0,80769.0,0.0089973]
[1731277128456,0.005,80778.0,80769.0,0.0089973]
[1731277128682,0.005,80777.0,80769.0,0.0089973]
[1731277128908,0.005,80780.0,80769.0,0.1328063]
[1731277129127,0.000842,80781.0,80769.0,0.1328063]
[1731277130239,0.000842,80781.0,80771.0,0.24761]
[1731277130451,0.000842,80781.0,80772.0,0.0089973]
[1731277130452,0.18566539,80774.0,80772.0,0.0089973]
[1731277130658,0.000842,80781.0,80773.0,0.0077754]
[1731277130900,0.000842,80781.0,80771.0,0.123805]
[1731277131098,0.000842,80781.0,80766.0,0.247626]
[1731277131311,0.000842,80781.0,80764.0,0.01101932]
[1731277131520,0.000842,80781.0,80774.0,0.123801]
[1731277131724,0.000842,80781.0,80772.0,0.24761]
[1731277131928,0.000842,80781.0,80776.0,0.123798]
[1731277132129,0.000842,80781.0,80777.0,0.01237558]
[1731277132333,0.000842,80781.0,80778.0,0.00737558]
[1731277132537,0.000842,80781.0,80777.0,0.123796]
[1731277132749,0.000842,80781.0,80768.0,0.01439851]
[1731277132960,0.000842,80781.0,80770.0,0.247616]
[1731277133167,0.000842,80781.0,80780.0,0.123793]
[1731277133398,0.000842,80781.0,80780.0,0.28046912]
[1731277133609,0.18566539,80793.0,80792.0,0.123774]
[1731277133861,0.000842,80800.0,80799.0,0.146763]
[1731277134085,1e-06,80800.0,80799.0,0.37517989]
[1731277134304,0.18566539,80849.0,80819.0,0.123733]
[1731277134523,0.005,80846.0,80819.0,0.27267521]
[1731277134989,0.005,80846.0,80828.0,0.123719]
[1731277135200,0.00247303,80837.0,80828.0,0.07135672]
[1731277135406,0.005,80831.0,80828.0,0.0077291]
[1731277135635,0.005,80836.0,80829.0,0.0077291]
[1731277135636,0.00817095,80830.0,80829.0,0.0077291]
[1731277135844,0.00317095,80830.0,80829.0,0.0077291]
[1731277136058,0.00247303,80835.0,80829.0,0.0077291]
[1731277136059,0.005,80831.0,80829.0,0.0077291]
[1731277136305,0.005,80831.0,80830.0,0.0077291]
[1731277136306,0.133714,80831.0,80830.0,0.0077291]
[1731277136516,0.26465621,80831.0,80830.0,0.0077291]
[1731277137367,0.023,80829.0,80766.0,0.15835303]
[1731277137580,0.005,80807.0,80754.0,0.03205947]
[1731277137994,0.005,80818.0,80775.0,0.005]
[1731277138191,0.123739,80815.0,80772.0,0.0543]
[1731277138417,0.00747303,80815.0,80772.0,0.0543]
[1731277138633,0.247493,80811.0,80785.0,0.247568]
[1731277138850,0.247493,80811.0,80782.0,0.247579]
[1731277138993,0.005,80816.0,80772.0,0.0543]
[1731277138994,0.005,80799.0,80776.0,0.00496183]
[1731277139227,0.1,80820.0,80780.0,0.00496183]
[1731277139228,0.03739382,80811.0,80780.0,0.00496183]
[1731277139424,0.247437,80829.0,80777.0,0.00247541]
[1731277139425,0.01,80815.0,80787.0,0.12378]
[1731277139663,0.123753,80806.0,80788.0,0.00247498]
[1731277140030,0.005,80811.0,80781.0,0.00496183]
[1731277140259,0.005,80809.0,80782.0,0.01546463]
[1731277140460,0.005,80809.0,80758.0,0.005]
[1731277140461,0.00247303,80808.0,80783.0,0.01546463]
[1731277140718,0.00247303,80808.0,80778.0,0.12875783]
[1731277140719,0.005,80816.0,80784.0,0.01793979]
[1731277140866,0.247456,80823.0,80785.0,0.09196557]
[1731277141142,0.005842,80826.0,80785.0,0.09196557]
[1731277141143,0.12373,80821.0,80801.0,0.123759]
[1731277141349,0.005,80822.0,80802.0,0.01546557]
[1731277141716,0.123734,80818.0,80803.0,0.01546557]
[1731277141931,0.123734,80818.0,80794.0,0.24754]
[1731277141932,0.247469,80818.0,80804.0,0.01546557]
[1731277142165,0.005,80819.0,80805.0,0.01794024]
[1731277142389,0.005,80819.0,80806.0,0.0278359]
[1731277142632,0.005,80819.0,80807.0,0.0278359]
[1731277142804,0.128733,80819.0,80808.0,0.0278359]
[1731277143008,0.005,80819.0,80809.0,0.0278359]
[1731277143208,0.123739,80816.0,80810.0,0.01237033]
[1731277143427,0.005,80819.0,80811.0,0.01237033]
[1731277143428,0.247469,80818.0,80811.0,0.01237033]
[1731277143554,0.123741,80814.0,80798.0,0.123764]
[1731277143757,0.247475,80816.0,80799.0,0.02783306]
[1731277144124,0.123755,80805.0,80800.0,0.01237025]
[1731277144358,0.005,80813.0,80801.0,0.01237025]
[1731277144579,0.123757,80803.0,80802.0,0.01237025]
[1731277145173,0.123776,80791.0,80790.0,0.18561485]
[1731277145716,0.247548,80793.0,80775.0,0.01546684]
[1731277145918,0.005,80797.0,80783.0,0.18561485]
[1731277146160,0.005,80797.0,80774.0,0.18561485]
[1731277146161,0.247543,80794.0,80774.0,0.18561485]
[1731277146367,0.123799,80776.0,80775.0,0.00895896]
[1731277146575,0.005,80799.0,80780.0,0.123792]
[1731277146790,0.005,80812.0,80780.0,0.123792]
[1731277146791,0.123767,80797.0,80785.0,0.123784]
[1731277146991,0.123772,80794.0,80786.0,0.00247529]
[1731277147397,0.123772,80794.0,80783.0,0.123787]
[1731277147398,0.123772,80794.0,80784.0,0.18561485]
[1731277147596,0.247527,80799.0,80784.0,0.18561485]
[1731277147780,0.123774,80793.0,80784.0,0.18561485]
[1731277147977,0.123775,80792.0,80784.0,0.18561485]
[1731277148222,0.005,80804.0,80784.0,0.18561485]
[1731277148418,0.12378,80789.0,80780.0,0.12594221]
[1731277148677,0.247521,80802.0,80786.0,0.18561485]
[1731277148951,0.123772,80794.0,80784.0,0.123785]
[1731277149155,0.123783,80786.0,80785.0,0.18561485]
[1731277149378,0.247555,80790.0,80785.0,0.00773385]
[1731277149587,0.005,80791.0,80762.0,0.19030716]
[1731277149588,0.123797,80777.0,80776.0,0.18561485]
[1731277149724,0.123816,80765.0,80762.0,0.18561485]
[1731277149938,0.123816,80765.0,80764.0,0.02043881]
[1731277150149,0.123812,80768.0,80764.0,0.02043881]
[1731277150521,0.005,80807.0,80765.0,0.1336777]
[1731277150725,0.24747,80818.0,80798.0,0.123765]
[1731277150893,0.005,80795.0,80769.0,0.123808]
[1731277151036,0.005,80795.0,80770.0,0.00773362]
[1731277151257,0.005,80795.0,80764.0,0.29294333]
[1731277151258,0.123792,80781.0,80771.0,0.00773362]
[1731277151464,0.005,80795.0,80772.0,0.00773362]
[1731277151679,0.123802,80774.0,80773.0,0.00773362]
[1731277151910,0.123816,80765.0,80764.0,0.01270332]
[1731277152137,0.123816,80765.0,80750.0,0.148838]
[1731277152138,0.005,80762.0,80757.0,0.18729885]
[1731277152336,0.123826,80758.0,80757.0,0.18729885]
[1731277152557,0.247617,80770.0,80757.0,0.18729885]
[1731277152766,0.247617,80770.0,80757.0,0.001684]
[1731277152767,0.31155706,80769.0,80757.0,0.001684]
[1731277152983,0.247599,80776.0,80758.0,0.18561485]
[1731277153193,0.123806,80771.0,80761.0,0.123821]
[1731277153356,0.18808788,80782.0,80769.0,0.247618]
[1731277153357,0.18561485,80782.0,80769.0,0.247618]
[1731277153562,0.123792,80781.0,80772.0,0.123804]
[1731277153784,0.18561485,80782.0,80763.0,0.247638]
[1731277153983,0.123784,80786.0,80775.0,0.1238]
[1731277154163,0.247558,80789.0,80769.0,0.18561485]
[1731277154164,0.123787,80784.0,80769.0,0.18561485]
[1731277154367,0.123786,80785.0,80771.0,0.247613]
[1731277154614,0.123778,80790.0,80782.0,0.123789]
[1731277154768,0.18561485,80799.0,80784.0,0.123786]
[1731277154980,0.18561485,80799.0,80789.0,0.123778]
[1731277155180,0.18561485,80799.0,80775.0,0.247601]
[1731277155181,0.123785,80785.0,80775.0,0.247601]
[1731277155356,0.00247303,80798.0,80780.0,0.18561485]
[1731277155562,0.005,80801.0,80780.0,0.18561485]
[1731277155563,0.12378,80789.0,80780.0,0.18561485]
[1731277155819,0.12378,80789.0,80780.0,0.30940685]
[1731277155959,0.123781,80788.0,80780.0,0.30940685]
[1731277156161,0.18561485,80796.0,80760.0,0.247645]
[1731277156162,0.247567,80786.0,80760.0,0.247645]
[1731277156405,0.247546,80793.0,80771.0,0.0024758]
[1731277156612,0.247549,80792.0,80777.0,0.123796]
[1731277156824,0.123786,80785.0,80778.0,0.00247563]
[1731277157031,0.247558,80789.0,80778.0,0.00247563]
[1731277157240,0.247561,80788.0,80771.0,0.247613]
[1731277157468,0.123789,80783.0,80775.0,0.1238]
[1731277157679,0.123785,80785.0,80773.0,0.247607]
[1731277157901,0.18808788,80786.0,80768.0,0.0473]
[1731277158070,0.123785,80785.0,80762.0,0.123819]
[1731277158300,0.123808,80771.0,80767.0,0.18561485]
[1731277158652,0.00247303,80780.0,80758.0,0.18561485]
[1731277158653,0.123818,80764.0,80758.0,0.18561485]
[1731277159029,0.123806,80772.0,80764.0,0.123816]
[1731277159462,0.18561485,80775.0,80755.0,0.0821]
[1731277159463,0.18561485,80765.0,80755.0,0.0821]
[1731277159635,0.123814,80766.0,80756.0,0.18561485]
[1731277159873,0.24761,80772.0,80756.0,0.18561485]
[1731277160040,0.247616,80770.0,80756.0,0.18561485]
[1731277160252,0.31403009,80773.0,80756.0,0.18561485]
[1731277160480,0.123816,80765.0,80758.0,0.00247625]
[1731277160843,0.123819,80763.0,80757.0,0.001684]
[1731277161067,0.247634,80765.0,80757.0,0.001684]
[1731277161299,0.123826,80758.0,80757.0,0.001684]
[1731277161644,0.12841524,80764.0,80757.0,0.001684]
[1731277161645,0.247625,80767.0,80757.0,0.001684]
[1731277161846,0.005,80785.0,80757.0,0.001684]
[1731277161847,0.005,80787.0,80768.0,0.24762]
[1731277162011,0.18561485,80796.0,80758.0,0.12594221]
[1731277162012,0.02443486,80771.0,80758.0,0.12594221]
[1731277162211,0.02443486,80771.0,80768.0,0.12381]
[1731277162463,0.02443486,80771.0,80761.0,0.247644]
[1731277162464,0.02443486,80771.0,80761.0,0.371466]
[1731277162668,0.12381,80769.0,80763.0,0.123818]
[1731277162871,0.005,80777.0,80748.0,0.18561485]
[1731277162872,0.247607,80774.0,80750.0,0.272677]
[1731277163098,0.00247303,80779.0,80770.0,0.18561485]
[1731277163099,0.00247303,80776.0,80770.0,0.18561485]
[1731277163300,0.00247303,80776.0,80770.0,0.123807]
[1731277163301,0.1238,80776.0,80770.0,0.123807]
[1731277163505,0.123826,80758.0,80750.0,0.025]
[1731277164961,0.005,80768.0,80750.0,0.025]
[1731277165102,0.0421393,80776.0,80751.0,0.0024765]
[1731277165103,0.247633,80765.0,80751.0,0.0024765]
[1731277165306,0.123817,80764.0,80756.0,0.123828]
[1731277165503,0.123816,80765.0,80754.0,0.247664]
[1731277165804,0.03205691,80785.0,80761.0,0.18561485]
[1731277166005,0.03205691,80785.0,80775.0,0.247598]